bitfinex/quotes_ETHUSD_20241203
["timestamp","ask_amount","ask_price","bid_price","bid_amount"]
[1733201527770,1.73948447,3649.4,3649.3,0.0821189]
[1733201527970,0.55,3649.3,3649.2,0.54453395]
[1733201528316,0.55,3649.3,3649.2,0.62668939]
[1733201528677,0.55,3649.5,3649.2,0.62668939]
[1733201529206,0.55,3649.7,3649.2,0.62668939]
[1733201529509,0.55,3649.7,3649.2,3.36700939]
[1733201529668,0.55,3649.7,3649.3,0.7998]
[1733201530073,0.55,3649.7,3649.4,0.08208235]
[1733201530720,0.7857,3650.2,3649.7,2.73993]
[1733201530877,0.7857,3650.5,3649.9,2.73977]
[1733201531080,1.18948447,3650.4,3649.9,2.73977]
[1733201531282,1.18948447,3650.4,3650.0,0.08213804]
[1733201532223,1.18948447,3650.4,3649.5,0.8087]
[1733201532224,1.18948447,3650.4,3649.8,2.73984]
[1733201532406,1.18948447,3650.4,3650.1,0.08210151]
[1733201532720,0.55,3650.3,3650.2,0.08206498]
[1733201533025,0.54231252,3650.3,3650.0,2.73972]
[1733201533185,0.54231252,3650.3,3650.1,0.08210151]
[1733201533381,0.54231252,3650.3,3649.5,3.54875]
[1733201533631,0.54231252,3650.3,3649.6,3.21879654]
[1733201533831,0.54231252,3650.3,3649.9,2.73976]
[1733201534145,0.54231252,3650.3,3650.0,0.08213804]
[1733201535075,0.54231252,3650.3,3650.2,0.54266605]
[1733201535279,0.54231252,3650.3,3650.2,0.62473103]
[1733201538971,0.46664333,3650.3,3650.2,0.62473103]
[1733201542109,1.73948447,3650.6,3650.2,0.62473103]
[1733201543088,0.8311,3651.2,3650.3,0.7838]
[1733201543413,1.18948447,3651.0,3650.4,0.08141053]
[1733201543584,1.18948447,3651.0,3650.4,2.82081053]
[1733201544106,1.18948447,3650.6,3650.4,0.08141053]
[1733201544319,0.55,3650.5,3650.4,0.08141053]
[1733201544832,0.55,3650.5,3650.2,0.54266605]
[1733201545119,1.73948447,3650.4,3650.3,0.08132539]
[1733201546897,0.55,3650.5,3650.3,0.08132539]
[1733201547640,5.93808,3652.2,3650.3,0.08132539]
[1733201547641,1.18948447,3651.0,3650.6,2.73927]
[1733201547794,1.18948447,3650.8,3650.7,0.08120634]
[1733201548403,1.18948447,3650.8,3650.4,2.73942]
[1733201548615,1.18948447,3650.8,3650.5,0.08127938]
[1733201549340,0.55,3650.7,3650.5,0.08127938]
[1733201550512,1.18948447,3650.6,3650.5,0.08127938]
[1733201550719,2.54098447,3650.6,3650.5,0.08127938]
[1733201550928,0.55,3650.5,3650.2,0.54266605]
[1733201551443,0.55,3650.7,3650.2,3.61039066]
[1733201553544,0.55,3650.7,3650.2,0.87089066]
[1733201553845,0.55,3650.7,3650.2,0.54266605]
[1733201554141,0.55,3650.7,3650.3,3.57193]
[1733201554848,0.55,3650.7,3650.3,3.55323]
[1733201555145,0.55,3650.7,3650.3,0.8138]
[1733201555334,0.55,3650.7,3650.2,0.54266605]
[1733201555528,2.00028447,3650.5,3650.2,0.54266605]
[1733201555745,0.55,3650.4,3650.2,0.54266605]
[1733201556466,0.55,3650.4,3650.2,0.49266605]
[1733201558895,0.55,3650.4,3650.3,0.08134792]
[1733201559504,0.55,3650.4,3650.3,0.03134792]
[1733201559680,0.55,3650.4,3650.3,0.08134792]
[1733201563573,0.83053129,3650.4,3650.3,0.08134792]
[1733201563990,0.83053129,3650.4,3649.2,0.2738]
[1733201563993,0.55,3650.2,3649.3,0.8158]
[1733201564173,0.55,3649.8,3649.3,0.8158]
[1733201564386,1.3227,3649.8,3649.4,0.08001455]
[1733201564584,1.3227,3649.8,3649.1,2.74038]
[1733201565316,1.3227,3649.8,3649.2,0.08008765]
[1733201567204,1.18948447,3649.7,3649.2,0.08008765]
[1733201567412,1.18948447,3649.5,3649.2,0.08008765]
[1733201567582,0.55,3649.4,3648.9,2.74053]
[1733201567785,0.55,3649.6,3649.3,0.08022234]
[1733201568026,1.18948447,3649.4,3649.3,0.56003595]
[1733201568327,1.73948447,3649.4,3649.3,0.56003595]
[1733201568747,0.55,3649.4,3649.3,0.56003595]
[1733201569026,1.18948447,3649.5,3649.3,0.56003595]
[1733201569231,1.3227,3649.4,3649.3,0.56003595]
[1733201572734,1.3227,3649.4,3648.7,3.55648]
[1733201572735,1.3227,3649.4,3648.7,0.8158]
[1733201572896,1.3227,3649.4,3648.4,3.49925]
[1733201573093,1.3227,3649.4,3649.1,0.54596708]
[1733201573094,0.55,3649.2,3649.1,0.54596708]
[1733201573889,0.55,3649.2,3649.1,0.07833935]
[1733201574094,0.55,3649.2,3648.7,0.55518079]
[1733201574095,0.75158248,3649.2,3648.7,0.55518079]
[1733201574327,1.73948447,3648.8,3648.7,0.55518079]
[1733201574528,2.51208447,3648.8,3648.7,0.55518079]
[1733201575042,2.51208447,3648.8,3648.0,3.4996]
[1733201575212,1.18948447,3648.6,3648.0,3.4996]
[1733201575409,0.55,3648.5,3648.0,2.7412]
[1733201576803,0.55,3648.5,3648.4,0.56026172]
[1733201578117,0.55,3648.5,3648.1,2.74113]
[1733201579645,0.55,3648.5,3647.7,2.74142]
[1733201579646,0.55,3648.1,3647.7,2.74142]
[1733201579944,1.18948447,3647.9,3647.5,2.74158]
[1733201580111,1.99118447,3647.9,3647.6,2.74152]
[1733201580454,1.99118447,3647.9,3647.4,2.74166]
[1733201581554,1.99118447,3647.9,3647.8,0.54945687]
[1733201581917,2.54118447,3647.9,3647.8,0.54945687]
[1733201583031,0.55,3648.0,3647.8,3.37055571]
[1733201583241,0.55,3648.2,3647.8,0.96624128]
[1733201583457,0.55,3648.2,3648.0,2.74116]
[1733201583621,0.55,3648.2,3648.1,0.08041624]
[1733201583838,0.55,3648.2,3648.0,2.74122]
[1733201584035,0.55,3648.2,3648.1,0.08041624]
[1733201584432,0.55,3648.2,3648.1,2.82156624]
[1733201584777,0.55,3648.4,3648.2,2.74102]
[1733201585142,0.55,3648.4,3648.3,0.0803431]
[1733201585532,0.55,3648.4,3648.2,2.74102]
[1733201585734,0.55,3648.4,3648.3,0.0803431]
[1733201586134,0.55,3648.4,3648.2,2.74102]
[1733201586372,0.55,3648.4,3648.3,0.0803431]
[1733201587064,0.55,3648.4,3648.0,2.74119]
[1733201587263,0.55,3648.2,3648.1,0.08041624]
[1733201587464,1.3742,3648.2,3648.1,0.08041624]
[1733201590191,1.3742,3648.2,3648.1,2.82156624]
[1733201590359,2.63961876,3648.6,3648.2,2.74103]
[1733201590360,1.3645,3648.5,3648.2,2.74103]
[1733201590872,0.8145,3648.8,3648.3,2.82116398]
[1733201591206,1.15991188,3648.8,3648.3,0.08024398]
[1733201591499,1.15991188,3648.8,3648.0,2.74115]
[1733201591703,1.15991188,3648.8,3648.1,0.08031712]
[1733201591903,0.55,3648.7,3648.1,2.82139712]
[1733201592077,0.55,3648.7,3648.2,2.74107]
[1733201592276,2.63961876,3648.6,3648.3,0.08024398]
[1733201592602,0.55,3648.5,3648.0,2.74122]
[1733201592783,0.55,3648.5,3648.4,0.08020742]
[1733201592986,0.55,3648.5,3648.2,2.74105]
[1733201593190,0.55,3648.5,3648.4,0.08020742]
[1733201593676,0.55,3648.5,3648.2,2.74105]
[1733201593874,0.55,3648.5,3648.3,0.08024398]
[1733201594085,0.55,3648.5,3648.2,2.74105]
[1733201594293,0.55,3648.5,3648.3,0.08024398]
[1733201594457,0.55,3648.5,3648.2,2.74105]
[1733201594661,0.55,3648.5,3648.3,0.08024398]
[1733201594856,0.55,3648.5,3648.2,2.74105]
[1733201595105,0.55,3648.5,3648.3,0.08005475]
[1733201595308,0.55,3648.5,3648.2,2.74105]
[1733201595468,0.55,3648.5,3648.3,0.08005475]
[1733201595821,0.55,3648.5,3648.4,2.74092]
[1733201595967,0.786,3649.3,3648.6,2.74071]
[1733201596392,0.786,3649.3,3648.7,0.0799085]
[1733201596918,0.786,3649.3,3648.7,2.8205985]
[1733201597268,0.55,3649.2,3648.7,2.8205985]
[1733201597462,0.55,3649.2,3648.7,0.0799085]
[1733201597711,0.55,3649.0,3648.5,2.74084]
[1733201597864,0.55,3649.0,3648.6,0.07943955]
[1733201599106,0.55,3649.0,3648.7,0.53560359]
[1733201599311,0.55,3649.0,3648.8,0.07834877]
[1733201601216,0.27634029,3649.5,3648.9,0.7946]
[1733201601412,0.7611,3649.3,3648.9,2.74052]
[1733201601595,0.7611,3649.3,3649.0,0.07700166]
[1733201602297,0.55,3649.2,3649.0,0.07700166]
[1733201602509,0.55,3649.2,3648.8,2.74055]
[1733201602722,0.55,3649.2,3648.9,0.0769739]
[1733201604788,0.55,3649.2,3648.9,2.8175139]
[1733201606376,0.55,3649.2,3648.9,0.0769739]
[1733201606780,0.55,3649.2,3648.7,3.27630359]
[1733201606999,0.55,3649.2,3649.0,0.07616674]
[1733201607282,0.55,3649.2,3649.1,0.07613019]
[1733201607618,1.74070953,3649.2,3648.7,3.27630359]
[1733201607806,1.74070953,3649.2,3649.1,0.07613019]
[1733201608414,1.74070953,3649.2,3648.8,2.74062]
[1733201608575,1.74070953,3649.2,3649.1,0.07613019]
[1733201608774,1.74070953,3649.2,3648.8,2.74062]
[1733201608974,1.74070953,3649.2,3649.1,0.07616171]
[1733201609174,1.74070953,3649.2,3648.8,2.74062]
[1733201609413,1.74070953,3649.2,3649.1,0.07613469]
[1733201609617,1.74070953,3649.2,3648.8,2.74062]
[1733201609793,1.74070953,3649.2,3649.1,0.07613469]
[1733201609995,1.74070953,3649.2,3648.8,2.74062]
[1733201610195,1.74070953,3649.2,3649.1,0.07613469]
[1733201610389,1.74070953,3649.2,3648.8,2.74062]
[1733201610612,1.74070953,3649.2,3649.1,0.07613469]
[1733201610806,1.74070953,3649.2,3648.8,2.74062]
[1733201611007,1.74070953,3649.2,3649.1,0.07613469]
[1733201611494,1.74070953,3649.2,3648.8,2.74062]
[1733201611708,1.74070953,3649.2,3648.9,0.0762078]
[1733201611897,1.74070953,3649.2,3648.9,2.8167478]
[1733201614217,0.55,3649.2,3648.9,2.8167478]
[1733201617250,1.74070953,3649.2,3648.9,0.0762078]
[1733201617846,0.25626758,3649.1,3648.9,0.0762078]
[1733201618147,1.74070953,3649.2,3648.9,0.0762078]
[1733201618340,0.2562659,3649.1,3648.9,0.0762078]
[1733201618547,1.74070953,3649.2,3648.9,0.0762078]
[1733201618773,0.25630272,3649.1,3648.9,0.0762078]
[1733201618977,1.74070953,3649.2,3648.9,0.0762078]
[1733201619354,0.25629764,3649.1,3648.9,0.0762078]
[1733201619673,1.74070953,3649.2,3648.9,0.0762078]
[1733201620040,0.25632937,3649.1,3648.9,0.0762078]
[1733201620555,1.74070953,3649.2,3648.9,0.0762078]
[1733201620752,0.25637099,3649.1,3648.9,0.0762078]
[1733201620972,1.74070953,3649.2,3648.9,0.0762078]
[1733201621283,0.25636496,3649.1,3648.9,0.0762078]
[1733201621473,1.74070953,3649.2,3648.9,0.0762078]
[1733201621646,0.25640656,3649.1,3648.9,0.0762078]
[1733201621847,1.74070953,3649.2,3648.9,0.0762078]
[1733201622043,0.25640286,3649.1,3648.9,0.0762078]
[1733201622291,1.74070953,3649.2,3648.9,0.0762078]
[1733201622446,0.25643577,3649.1,3648.9,0.0762078]
[1733201622650,1.74070953,3649.2,3648.9,0.0762078]
[1733201622971,0.25643629,3649.1,3648.9,0.0762078]
[1733201623180,1.74070953,3649.2,3648.9,0.0762078]
[1733201623384,1.14552047,3649.5,3648.9,0.8371078]
[1733201623688,0.46170069,3649.4,3649.2,2.74032]
[1733201623856,2.33623,3649.7,3649.3,0.0748445]
[1733201624054,0.94932454,3649.6,3649.2,2.74032]
[1733201624281,2.33623,3649.7,3649.2,2.74032]
[1733201624489,0.94940983,3649.6,3649.3,0.0748445]
[1733201624654,1.19070953,3649.7,3649.2,2.74032]
[1733201624993,1.15464048,3649.6,3649.3,0.0748445]
[1733201625203,0.87239096,3649.6,3649.3,0.0748445]
[1733201625357,0.46185907,3649.5,3649.2,2.74032]
[1733201625551,0.46185907,3649.4,3649.3,0.0748445]
[1733201625781,0.46185907,3649.4,3649.3,2.74025]
[1733201625949,0.55,3649.8,3649.4,0.8146]
[1733201626286,0.46186695,3649.7,3649.5,0.07477141]
[1733201626488,0.55,3649.8,3649.5,0.07477141]
[1733201626489,0.46186695,3649.6,3649.5,0.07477141]
[1733201627454,0.46182663,3649.6,3649.5,0.07477141]
[1733201627866,0.25655243,3649.6,3649.5,0.07477141]
[1733201628399,0.55,3649.8,3649.5,0.07477141]
[1733201628583,0.46169297,3649.7,3649.5,0.07477141]
[1733201628895,0.55,3649.8,3649.5,0.07477141]
[1733201628896,0.46168712,3649.6,3649.5,0.07477141]
[1733201629060,0.55,3649.8,3649.5,0.07477141]
[1733201629256,0.46167962,3649.7,3649.5,0.07477141]
[1733201629497,0.25648868,3649.6,3649.5,0.07477141]
[1733201630212,0.55,3649.8,3649.5,0.07477141]
[1733201630358,0.46163995,3649.7,3649.5,0.07477141]
[1733201630704,0.4616245,3649.6,3649.5,0.07477141]
[1733201630861,0.46161904,3649.6,3649.5,0.07477141]
[1733201632483,1.01161904,3649.6,3649.5,0.07477141]
[1733201634370,1.01160324,3649.6,3649.5,0.07477141]
[1733201636029,1.9605651,3649.6,3649.5,0.07477141]
[1733201636323,4.01728538,3649.6,3649.5,0.07477141]
[1733201636478,0.55,3649.5,3648.8,0.8564678]
[1733201636678,1.19070953,3649.3,3648.9,2.74054]
[1733201636982,1.19070953,3649.3,3649.0,0.07309828]
[1733201637176,1.19070953,3649.3,3649.0,0.61091607]
[1733201637382,0.55,3649.2,3649.0,0.61091607]
[1733201637715,0.55,3649.2,3649.1,0.07312926]
[1733201637880,0.55,3649.2,3648.9,0.54735998]
[1733201638082,0.8062903,3649.2,3649.0,0.07316581]
[1733201638394,0.55,3649.2,3649.0,0.07316581]
[1733201638778,2.54150953,3649.1,3649.0,0.07316581]
[1733201638977,3.95194525,3649.1,3649.0,0.07316581]
[1733201639179,0.55,3649.0,3648.8,0.0730678]
[1733201640204,1.49926389,3648.9,3648.8,0.0730678]
[1733201640400,4.37027858,3648.9,3648.8,0.0730678]
[1733201640604,2.94624014,3648.9,3648.8,0.0730678]
[1733201640824,3.15124921,3648.9,3648.8,0.0730678]
[1733201641016,2.68997342,3648.9,3648.8,0.0730678]
[1733201641314,1.74070953,3648.9,3648.8,0.0730678]
[1733201641638,2.69018475,3648.9,3648.8,0.0730678]
[1733201643392,1.74070953,3648.9,3648.8,0.0730678]
[1733201644438,1.73417706,3648.9,3648.8,0.0730678]
[1733201645529,2.33623,3649.3,3648.8,2.8136778]
[1733201645701,2.83448758,3649.2,3648.8,3.5864778]
[1733201645894,2.33623,3649.3,3648.8,3.5864778]
[1733201646118,2.83445814,3649.2,3648.8,3.5864778]
[1733201646395,2.33623,3649.3,3648.8,3.5864778]
[1733201646610,0.55,3649.1,3648.8,3.5864778]
[1733201646813,0.55,3649.2,3648.8,3.5864778]
[1733201647914,0.55,3649.2,3648.8,1.25992686]
[1733201648310,0.55,3649.3,3649.0,2.74045]
[1733201648510,1.74070953,3649.3,3649.0,2.74045]
[1733201649021,1.49938074,3649.2,3649.1,0.07334086]
[1733201649206,0.55,3649.2,3649.1,0.07334086]
[1733201649412,0.55,3649.2,3649.1,2.81374086]
[1733201650123,1.49932467,3649.2,3649.1,2.81374086]
[1733201650325,1.49932467,3649.2,3649.1,0.07334086]
[1733201650537,1.49932467,3649.2,3648.9,2.74052]
[1733201650835,0.55,3649.1,3649.0,2.81384741]
[1733201651351,0.55,3649.2,3649.0,2.81384741]
[1733201657061,0.55,3649.3,3649.0,2.81384741]
[1733201657214,0.55,3649.4,3649.0,2.81384741]
[1733201657914,1.74070953,3649.4,3649.0,2.81384741]
[1733201658228,0.55,3649.2,3649.0,2.81384741]
[1733201658744,0.55,3649.3,3649.0,2.81384741]
[1733201658950,0.55,3649.3,3649.0,0.07337741]
[1733201659164,0.55,3649.0,3648.6,3.29488278]
[1733201659315,0.55,3649.0,3648.7,0.07343306]
[1733201661530,0.55,3649.0,3648.6,0.55411278]
[1733201661813,0.55,3649.2,3648.7,0.8054]
[1733201662014,1.14552047,3649.5,3649.0,2.74044]
[1733201662256,2.83462008,3649.4,3649.0,2.74044]
[1733201662464,0.25632559,3649.3,3649.1,0.07333187]
[1733201662749,1.42391648,3649.4,3649.1,0.07333187]
[1733201662915,0.46141811,3649.3,3649.1,0.07333187]
[1733201663116,2.33623,3649.6,3649.2,0.792]
[1733201663316,0.46141353,3649.5,3649.3,0.07325877]
[1733201663545,1.19070953,3649.6,3649.2,4.07344788]
[1733201663761,1.4105442,3649.5,3649.3,0.07321825]
[1733201664054,1.19070953,3649.6,3649.3,2.74018]
[1733201664259,0.46137567,3649.5,3649.4,0.0731817]
[1733201664557,2.33623,3649.7,3649.4,0.0731817]
[1733201664722,0.25635511,3649.5,3649.4,0.0731817]
[1733201665450,1.01145454,3649.5,3649.4,0.0731817]
[1733201666502,3.15138355,3649.5,3649.4,0.0731817]
[1733201667063,3.15138355,3649.5,3649.2,4.07345788]
[1733201667287,1.74070953,3649.5,3649.4,0.0731817]
[1733201667472,2.89512937,3649.5,3649.2,4.07345788]
[1733201667660,1.74070953,3649.5,3649.2,4.07345788]
[1733201667864,1.74070953,3649.5,3649.3,0.07321825]
[1733201668313,1.74070953,3649.5,3649.2,4.07345788]
[1733201668507,1.74070953,3649.5,3648.5,0.2738]
[1733201668508,1.19070953,3649.3,3648.9,2.74048]
[1733201668662,0.55,3649.0,3648.2,3.0148]
[1733201668864,0.55,3648.8,3648.6,2.74077]
[1733201669383,0.55,3648.8,3648.7,2.7407]
[1733201670413,0.55,3648.8,3648.5,2.74082]
[1733201671116,0.55,3648.8,3648.7,0.54617596]
[1733201671982,0.55,3649.1,3648.7,3.28687596]
[1733201672375,0.25641082,3649.0,3648.7,3.28687596]
[1733201672580,0.55,3649.1,3648.7,3.28687596]
[1733201673513,0.55,3649.1,3648.9,3.54788]
[1733201673709,0.55,3649.3,3649.0,0.07090428]
[1733201673906,0.55,3649.3,3648.9,0.8074]
[1733201673907,0.25644057,3649.2,3649.1,2.74038]
[1733201674109,0.55,3649.3,3649.1,0.07086772]
[1733201674286,0.55,3649.4,3649.3,2.74024]
[1733201674488,3.12879372,3649.4,3649.3,2.81103012]
[1733201674723,3.38526245,3649.4,3649.3,2.81103012]
[1733201674923,1.96103745,3649.4,3649.3,2.81103012]
[1733201675078,3.38524784,3649.4,3649.3,2.81103012]
[1733201675420,0.25645983,3649.4,3649.3,2.81103012]
[1733201677320,1.4252165,3649.6,3649.3,0.07079012]
[1733201677521,1.96205781,3649.5,3649.0,2.74042]
[1733201677764,0.80660038,3649.5,3649.4,2.74017]
[1733201678055,0.55,3649.6,3649.5,2.74008]
[1733201678255,3.79799688,3649.6,3649.5,2.74008]
[1733201678431,3.79799688,3649.6,3649.5,2.81068447]
[1733201678634,3.79805416,3649.6,3649.5,2.81068447]
[1733201678847,1.41212628,3649.6,3649.5,2.81068447]
[1733201679722,2.83751095,3649.6,3649.5,2.81068447]
[1733201679923,0.46188221,3649.6,3649.5,2.81068447]
[1733201680149,0.25660111,3649.6,3649.5,2.81068447]
[1733201680815,1.19070953,3649.7,3649.6,2.74002]
[1733201681063,2.60279422,3649.7,3649.6,2.74002]
[1733201681220,2.60279422,3649.7,3649.6,2.81038083]
[1733201681416,4.02794021,3649.7,3649.6,2.81038083]
[1733201681622,4.02796093,3649.7,3649.6,0.07036083]
[1733201681865,5.20400175,3649.7,3649.6,0.07036083]
[1733201682083,6.34952222,3649.7,3649.4,2.74015]
[1733201682365,1.19070953,3649.5,3649.4,2.74015]
[1733201682559,1.44726179,3649.5,3649.4,2.74015]
[1733201683222,1.44726179,3649.5,3649.4,3.29865786]
[1733201684192,1.44726179,3649.5,3649.4,4.06035786]
[1733201684380,1.4471735,3649.5,3649.4,4.06035786]
[1733201685392,1.19070953,3649.5,3649.4,4.06035786]
[1733201685749,1.44716899,3649.5,3649.4,4.06035786]
[1733201686365,1.19070953,3649.5,3649.4,4.06035786]
[1733201687002,0.25644709,3649.5,3649.4,4.06037786]
[1733201687161,1.19070953,3649.7,3649.4,1.32020786]
[1733201687363,1.19070953,3649.7,3649.6,2.74002]
[1733201687696,2.60217169,3649.7,3649.6,2.74002]
[1733201687866,1.65231585,3649.7,3649.6,2.74002]
[1733201688454,1.65231696,3649.7,3649.6,2.74002]
[1733201688651,1.65231491,3649.7,3649.6,2.74002]
[1733201688974,2.52916689,3649.7,3649.6,2.74002]
[1733201689377,1.37408969,3649.7,3649.6,2.74002]
[1733201689890,0.25644796,3649.7,3649.6,2.74002]
[1733201690094,0.25644796,3649.7,3649.6,3.42006179]
[1733201690318,1.19070953,3650.0,3649.9,2.7398]
[1733201690457,1.41157853,3650.0,3649.7,2.73995]
[1733201690652,0.2564653,3649.9,3649.8,2.73987]
[1733201693967,0.2564653,3649.9,3649.8,2.81022078]
[1733201694365,0.2564653,3649.9,3649.8,3.43324204]
[1733201694571,2.35653231,3650.4,3650.0,2.73972]
[1733201694767,0.25641209,3650.3,3650.1,0.06989006]
[1733201694971,1.21101184,3650.4,3650.1,0.06989006]
[1733201695188,1.21101184,3650.4,3650.3,2.7395]
[1733201695396,2.62214441,3650.4,3650.3,2.809317]
[1733201696692,1.672428,3650.4,3650.3,2.809317]
[1733201697000,2.62178942,3650.4,3650.3,2.809317]
[1733201697408,1.672428,3650.4,3650.3,2.809317]
[1733201698228,1.67234679,3650.4,3650.3,2.809317]
[1733201698623,2.62172684,3650.4,3650.3,2.809317]
[1733201699228,1.67234679,3650.4,3650.3,2.809317]
[1733201699833,1.67234679,3650.4,3650.3,3.3464553]
[1733201700004,1.46735423,3650.4,3650.3,3.3464553]
[1733201700536,1.67239115,3650.4,3650.3,3.3464553]
[1733201700824,1.46735423,3650.4,3650.3,3.3464553]
[1733201701029,1.67239295,3650.4,3650.3,3.3464553]
[1733201701705,1.46735423,3650.4,3650.3,3.3464553]
[1733201704138,1.44703933,3650.4,3650.3,3.3464553]
[1733201704643,2.21073933,3650.4,3650.3,0.069817]
[1733201704929,2.64037933,3650.4,3650.3,0.069817]
[1733201705229,2.64037933,3650.4,3650.1,2.73962]
[1733201705435,0.46140587,3650.3,3650.2,0.06955201]
[1733201705645,1.6521154,3650.3,3650.2,0.06955201]
[1733201705794,1.6521154,3650.3,3650.0,3.29647852]
[1733201706135,0.2563298,3650.2,3650.1,0.06958854]
[1733201710862,0.2563298,3650.2,3650.1,0.06958854]
[1733201711531,0.2563298,3650.2,3650.1,2.80923854]
[1733201712362,0.2563298,3650.2,3650.1,0.06958854]
[1733201713126,0.46152776,3650.2,3650.1,0.06958854]
[1733201713328,0.2563298,3650.2,3650.1,0.06958854]
[1733201715781,0.46158477,3650.2,3650.1,0.06958854]
[1733201716183,0.46158477,3650.2,3650.1,2.80923854]
[1733201716356,0.2563298,3650.2,3650.1,2.80923854]
[1733201717486,0.46164572,3650.2,3650.1,2.80923854]
[1733201718193,0.2563298,3650.2,3650.1,2.80923854]
[1733201723868,4.61033268,3650.2,3649.4,2.74015]
[1733201724033,1.19070953,3649.5,3649.4,2.74015]
[1733201724433,1.44752691,3649.5,3649.4,2.74015]
[1733201724821,0.25681738,3649.5,3649.4,2.74015]
[1733201725020,0.25681738,3649.5,3649.4,3.769665]
[1733201725258,0.4109099,3649.9,3649.7,2.73987]
[1733201725427,0.25677535,3649.8,3649.7,2.73987]
[1733201726166,0.25677535,3649.8,3649.4,1.58153558]
[1733201726167,0.25677535,3649.8,3649.5,2.74008]
[1733201726466,0.25677535,3649.7,3649.5,2.74008]
[1733201726761,0.25677535,3649.6,3649.5,2.74008]
[1733201727122,1.19070953,3649.9,3649.5,2.74008]
[1733201727354,0.25671724,3649.8,3649.5,2.74008]
[1733201727532,0.25671724,3649.7,3649.5,2.74008]
[1733201727859,1.19070953,3649.9,3649.4,1.30752058]
[1733201728056,0.25672245,3649.8,3649.6,2.73999]
[1733201728270,1.19070953,3649.9,3649.7,2.73995]
[1733201728429,0.20535061,3649.8,3649.7,2.73995]
[1733201728769,0.25668817,3649.8,3649.7,2.73995]
[1733201728925,0.46203777,3649.8,3649.7,2.73995]
[1733201729339,0.46202114,3649.8,3649.5,2.74007]
[1733201729633,0.25668817,3649.7,3649.5,2.74007]
[1733201729821,1.96060953,3649.9,3649.5,2.74007]
[1733201730023,1.19070953,3649.7,3649.5,2.74007]
[1733201730639,0.25666517,3649.6,3649.5,2.74007]
[1733201730842,1.19070953,3649.7,3649.5,2.74007]
[1733201732068,1.19070953,3649.9,3649.7,2.73994]
[1733201732367,0.25664722,3649.8,3649.7,2.73994]
[1733201733072,0.25664722,3649.8,3649.5,2.74003]
[1733201733258,1.19070953,3649.9,3649.5,2.74003]
[1733201733259,0.25664722,3649.7,3649.5,2.74003]
[1733201733452,1.19070953,3649.9,3649.5,2.74003]
[1733201733639,0.25663477,3649.8,3649.5,2.71972769]
[1733201733845,0.25663477,3649.7,3649.5,2.71972769]
[1733201734047,1.19070953,3649.9,3649.5,2.71972769]
[1733201734259,1.19070953,3649.7,3649.5,2.71972769]
[1733201734878,0.25663056,3649.6,3649.5,2.71972769]
[1733201735733,1.19070953,3649.7,3649.5,2.71972769]
[1733201735933,0.25660899,3649.6,3649.5,2.71972769]
[1733201736431,0.25660899,3649.6,3649.4,3.29217058]
[1733201736639,1.19070953,3649.7,3649.4,3.29217058]
[1733201736865,0.25658223,3649.6,3649.4,3.29217058]
[1733201737066,1.19070953,3649.7,3649.4,3.29217058]
[1733201737233,0.25657216,3649.6,3649.5,2.74009]
[1733201737439,1.19070953,3649.7,3649.5,2.74009]
[1733201738060,1.19070953,3649.7,3649.6,2.74002]
[1733201738381,0.25656558,3649.7,3649.6,2.74002]
[1733201739033,0.25656558,3649.7,3649.6,2.80871707]
[1733201741276,1.42571991,3649.9,3649.6,0.06869707]
[1733201741571,0.25657024,3649.8,3649.4,3.29217058]
[1733201741789,2.33623,3650.0,3649.7,0.06863353]
[1733201742089,2.83800358,3649.9,3649.8,0.06859699]
[1733201742229,4.02871311,3649.9,3649.4,3.29217058]
[1733201742433,0.25656872,3649.8,3649.5,0.06870661]
[1733201742666,0.25656872,3649.7,3649.5,0.06870661]
[1733201742874,1.19070953,3649.9,3649.5,0.06870661]
[1733201743049,0.25657676,3649.8,3649.5,0.06870661]
[1733201743249,0.25657676,3649.7,3649.5,0.06870661]
[1733201743460,1.6758406,3649.9,3649.5,0.06870661]
[1733201743657,0.25658306,3649.8,3649.5,0.06870661]
[1733201743866,0.25658306,3649.7,3649.5,0.06870661]
[1733201744083,1.6758406,3649.9,3649.5,0.06870661]
[1733201744235,0.461858,3649.8,3649.5,0.06870661]
[1733201744557,0.25658642,3649.7,3649.5,0.06870661]
[1733201744736,1.6758406,3649.9,3649.5,0.06870661]
[1733201744933,0.25658935,3649.8,3649.5,0.06870661]
[1733201745170,0.25658935,3649.7,3649.5,0.06870661]
[1733201745372,1.6758406,3649.9,3649.5,0.06870661]
[1733201745674,1.4123163,3649.8,3649.5,0.06870661]
[1733201745875,0.25659673,3649.7,3649.5,0.06870661]
[1733201746061,1.6758406,3649.9,3649.5,0.06870661]
[1733201746264,0.46187361,3649.8,3649.5,0.06870661]
[1733201746450,0.25659645,3649.7,3649.5,0.06870661]
[1733201746776,1.6758406,3649.9,3649.5,0.06870661]
[1733201747074,1.41231835,3649.8,3649.5,0.06870661]
[1733201747269,0.25660244,3649.7,3649.5,0.06870661]
[1733201747430,1.19070953,3649.9,3649.5,0.06870661]
[1733201747634,1.41236665,3649.8,3649.5,0.06870661]
[1733201747834,0.25662477,3649.7,3649.5,0.06870661]
[1733201748049,0.25662477,3649.6,3649.5,0.06870661]
[1733201748235,0.25664105,3649.6,3649.5,0.06870661]
[1733201749540,1.44735058,3649.6,3649.5,0.06870661]
[1733201749738,1.10292969,3649.6,3649.0,2.74047]
[1733201749977,1.19070953,3649.3,3649.0,2.74047]
[1733201750663,1.19070953,3649.3,3649.1,2.74039]
[1733201751852,1.19070953,3649.3,3649.2,3.29904691]
[1733201753590,1.19070953,3649.6,3649.2,3.29904691]
[1733201753753,0.77490533,3649.5,3649.2,3.29904691]
[1733201754080,0.25685743,3649.4,3649.3,0.06794339]
[1733201754256,0.25685743,3649.4,3649.2,3.29904691]
[1733201754456,1.19070953,3649.6,3649.3,0.06794339]
[1733201754653,0.25684544,3649.5,3649.2,3.29904691]
[1733201754859,0.25684544,3649.4,3649.3,0.06794339]
[1733201755039,1.19070953,3649.6,3649.2,3.29904691]
[1733201755242,0.25685187,3649.4,3649.3,0.06748075]
[1733201755457,0.25685187,3649.4,3649.2,3.29904691]
[1733201755761,1.50327253,3649.6,3649.3,0.06748075]
[1733201755968,0.25684981,3649.5,3649.3,0.06748075]
[1733201756183,0.25684981,3649.4,3649.2,3.29904691]
[1733201756477,1.50327253,3649.6,3649.2,3.29904691]
[1733201756689,0.80614681,3649.5,3649.2,3.29904691]